fUSD/lending_fUSD_20251014
["ID","MTS","AMOUNT","RATE_DAILY","PERIOD"]
[391290834,1760470279010,-500.0,0.00016986,2]
[391290835,1760470279019,-500.0,0.00016986,2]
[391290836,1760470279030,-549.26,0.00016986,2]
[391290837,1760470279039,-500.0,0.00016986,2]
[391290838,1760470279048,-1235.98,0.00016986,2]
[391290839,1760470279057,-500.0,0.00016986,2]
[391290840,1760470279066,-500.0,0.00016986,2]
[391290841,1760470279074,-500.0,0.00016986,2]
[391290842,1760470279083,-532.51,0.00016986,2]
[391290843,1760470279092,-1599.92,0.00016986,2]
[391290844,1760470279101,-500.0,0.00016986,2]
[391290845,1760470279110,-500.0,0.00016986,2]
[391290846,1760470279119,-500.0,0.00016986,2]
[391290847,1760470279128,-501.42,0.00016986,2]
[391290848,1760470279138,-500.0,0.00016986,2]
[391290849,1760470279147,-500.0,0.00016986,2]
[391290850,1760470279156,-620.87200796,0.00016986,2]
[391290851,1760470279165,-500.0,0.00016986,2]
[391290852,1760470279175,-1893.86,0.00016986,2]
[391290853,1760470279184,-643.32,0.00016986,2]
[391290854,1760470279193,-500.0,0.00016986,2]
[391290855,1760470279202,-1633.98,0.00016986,2]
[391290856,1760470279211,-655.61,0.00016986,2]
[391290857,1760470279220,-500.0,0.00016986,2]
[391290858,1760470279229,-1863.8,0.00016986,2]
[391290859,1760470279239,-500.0,0.00016986,2]
[391290860,1760470279248,-500.0,0.00016986,2]
[391290861,1760470279257,-500.0,0.00016986,2]
[391290862,1760470279266,-732.11,0.00016986,2]
[391290863,1760470279276,-500.0,0.00016986,2]
[391290864,1760470279285,-931.06,0.00016986,2]
[391290865,1760470279294,-1829.34,0.00016986,2]
[391290866,1760470279307,-415.96,0.00016986,2]
[391290867,1760470279316,-500.0,0.00016986,2]
[391290868,1760470279326,-1773.97,0.00016986,2]
[391290869,1760470279335,-500.0,0.00016986,2]
[391290870,1760470279344,-500.0,0.00016986,2]
[391290871,1760470279354,-1348.9,0.00016986,2]
[391290872,1760470279363,-1445.37,0.00016986,2]
[391290873,1760470279373,-500.0,0.00016986,2]
[391290874,1760470279383,-500.0,0.00016986,2]
[391290875,1760470279396,-834.86,0.00016986,2]
[391290876,1760470279406,-705.99,0.00016986,2]
[391290877,1760470279415,-2975.7,0.00016986,2]
[391290878,1760470279425,-500.0,0.00016986,2]
[391290879,1760470279435,-500.0,0.00016986,2]
[391290880,1760470279446,-500.0,0.00016986,2]
[391290881,1760470279455,-689.07,0.00016986,2]
[391290882,1760470279465,-1138.96,0.00016986,2]
[391290883,1760470279474,-500.0,0.00016986,2]
[391290884,1760470279484,-624.14,0.00016986,2]
[391290885,1760470279493,-1529.3,0.00016986,2]
[391290886,1760470279503,-500.0,0.00016986,2]
[391290887,1760470279512,-500.0,0.00016986,2]
[391290888,1760470279521,-2316.11,0.00016986,2]
[391290889,1760470279531,-500.0,0.00016986,2]
[391290890,1760470279540,-541.35,0.00016986,2]
[391290891,1760470279550,-500.0,0.00016986,2]
[391290892,1760470279559,-500.0,0.00016986,2]
[391290893,1760470279568,-500.0,0.00016986,2]
[391290894,1760470279579,-500.0,0.00016986,2]
[391290895,1760470279589,-500.0,0.00016986,2]
[391290896,1760470279598,-1344.14,0.00016986,2]
[391290897,1760470279607,-1058.36,0.00016986,2]
[391290898,1760470279618,-500.0,0.00016986,2]
[391290899,1760470279628,-500.0,0.00016986,2]
[391290900,1760470279637,-1109.4,0.00016986,2]
[391290901,1760470279646,-232.74,0.00016986,2]
[391290902,1760470279655,-615.06,0.00016986,2]
[391290903,1760470279665,-500.0,0.00016986,2]
[391290904,1760470279674,-500.0,0.00016986,2]
[391290905,1760470279687,-500.0,0.00016986,2]
[391290906,1760470279698,-877.9,0.00016986,2]
[391290907,1760470279707,-720.56,0.00016986,2]
[391290908,1760470279716,-500.0,0.00016986,2]
[391290909,1760470279726,-585.85,0.00016986,2]
[391290910,1760470279735,-500.0,0.00016986,2]
[391290911,1760470279744,-263.66567914,0.00016986,2]
[391290912,1760470279754,-500.0,0.00016986,2]
[391290913,1760470279763,-1073.42,0.00016986,2]
[391290914,1760470279773,-500.0,0.00016986,2]
[391290915,1760470279782,-500.0,0.00016986,2]
[391290916,1760470279792,-500.0,0.00016986,2]
[391290917,1760470279801,-678.38,0.00016986,2]
[391290918,1760470279810,-500.0,0.00016986,2]
[391290919,1760470279820,-500.0,0.00016986,2]
[391290920,1760470279829,-387.08,0.00016986,2]
[391290921,1760470279838,-500.0,0.00016986,2]
[391290922,1760470279848,-500.0,0.00016986,2]
[391290923,1760470279857,-654.15,0.00016986,2]
[391290924,1760470279866,-557.53594338,0.00016986,2]
[391290925,1760470279880,-1090.8,0.00016986,2]
[391290926,1760470279892,-669.37,0.00016986,2]
[391290927,1760470279902,-500.0,0.00016986,2]
[391290928,1760470279911,-500.0,0.00016986,2]
[391290929,1760470279921,-500.0,0.00016986,2]
[391290930,1760470279931,-1229.42,0.00016986,2]
[391290931,1760470279940,-500.0,0.00016986,2]
[391290932,1760470279950,-500.0,0.00016986,2]
[391290933,1760470279959,-500.0,0.00016986,2]
[391290934,1760470279968,-906.83,0.00016986,2]
[391290935,1760470279977,-500.0,0.00016986,2]
[391290936,1760470279986,-563.32,0.00016986,2]
[391290937,1760470279995,-500.0,0.00016986,2]
[391290938,1760470280006,-500.0,0.00016986,2]
[391290939,1760470280016,-500.0,0.00016986,2]
[391290940,1760470280025,-500.0,0.00016986,2]
[391290941,1760470280034,-668.43,0.00016986,2]
[391290942,1760470280044,-500.0,0.00016986,2]
[391290943,1760470280054,-500.0,0.00016986,2]
[391290944,1760470280063,-500.0,0.00016986,2]
[391290945,1760470280073,-518.6,0.00016986,2]
[391290946,1760470280085,-962.22,0.00016986,2]
[391290947,1760470280094,-500.0,0.00016986,2]
[391290948,1760470280104,-500.0,0.00016986,2]
[391290949,1760470280114,-500.0,0.00016986,2]
[391290950,1760470280125,-500.0,0.00016986,2]
[391290951,1760470280135,-1408.48,0.00016986,2]
[391290952,1760470280145,-897.34,0.00016986,2]
[391290953,1760470280154,-543.61,0.00016986,2]
[391290954,1760470280163,-500.0,0.00016986,2]
[391290955,1760470280172,-500.0,0.00016986,2]
[391290956,1760470280181,-838.51,0.00016986,2]
[391290957,1760470280190,-2173.81,0.00016986,2]
[391290958,1760470280199,-500.0,0.00016986,2]
[391290959,1760470280208,-889.19,0.00016986,2]
[391290960,1760470280218,-500.0,0.00016986,2]
[391290961,1760470280227,-1003.49,0.00016986,2]
[391290962,1760470280236,-500.0,0.00016986,2]
[391290963,1760470280245,-500.0,0.00016986,2]
[391290964,1760470280255,-1096.96,0.00016986,2]
[391290965,1760470280264,-900.78,0.00016986,2]
[391290966,1760470280274,-500.0,0.00016986,2]
[391290967,1760470280286,-1022.92,0.00016986,2]
[391290968,1760470280295,-1321.46,0.00016986,2]
[391290969,1760470280305,-500.0,0.00016986,2]
[391290970,1760470280314,-2461.71,0.00016986,2]
[391290971,1760470280324,-659.65,0.00016986,2]
[391290972,1760470280333,-500.0,0.00016986,2]
[391290973,1760470280342,-500.0,0.00016986,2]
[391290974,1760470280352,-500.0,0.00016986,2]
[391290975,1760470280361,-1496.59,0.00016986,2]
[391290976,1760470280371,-500.0,0.00016986,2]
[391290977,1760470280380,-500.0,0.00016986,2]
[391290978,1760470280394,-504.23,0.00016986,2]
[391290979,1760470280403,-1098.26,0.00016986,2]
[391290980,1760470280412,-500.0,0.00016986,2]
[391290981,1760470280422,-500.0,0.00016986,2]
[391290982,1760470280434,-868.45,0.00016986,2]
[391290983,1760470280443,-500.0,0.00016986,2]
[391290984,1760470280453,-1647.08,0.00016986,2]
[391290985,1760470280463,-500.0,0.00016986,2]
[391290986,1760470280473,-746.15,0.00016986,2]
[391290987,1760470280485,-500.0,0.00016986,2]
[391290988,1760470280495,-500.0,0.00016986,2]
[391290989,1760470280504,-610.04,0.00016986,2]
[391290990,1760470280513,-500.0,0.00016986,2]
[391290991,1760470280523,-500.0,0.00016986,2]
[391290992,1760470280533,-500.0,0.00016986,2]
[391290993,1760470280542,-500.0,0.00016986,2]
[391290994,1760470280552,-500.0,0.00016986,2]
[391290995,1760470280561,-636.57,0.00016986,2]
[391290996,1760470280570,-500.0,0.00016986,2]
[391290997,1760470280579,-500.0,0.00016986,2]
[391290998,1760470280588,-500.0,0.00016986,2]
[391290999,1760470280598,-500.0,0.00016986,2]
[391291000,1760470280607,-1563.94,0.00016986,2]
[391291001,1760470280616,-2127.04,0.00016986,2]
[391291002,1760470280628,-1248.6,0.00016986,2]
[391291003,1760470280640,-500.0,0.00016986,2]
[391291004,1760470280649,-909.08,0.00016986,2]
[391291005,1760470280659,-1134.65,0.00016986,2]
[391291006,1760470280668,-500.0,0.00016986,2]
[391291007,1760470280677,-416.62221383,0.00016986,2]
[391291008,1760470280686,-1114.51,0.00016986,2]
[391291009,1760470280696,-516.22,0.00016986,2]
[391291010,1760470280705,-500.0,0.00016986,2]
[391291011,1760470280714,-500.0,0.00016986,2]
[391291012,1760470280724,-1172.2,0.00016986,2]
[391291013,1760470280733,-1221.46,0.00016986,2]
[391291014,1760470280743,-500.0,0.00016986,2]
[391291015,1760470280752,-500.0,0.00016986,2]
[391291016,1760470280761,-500.0,0.00016986,2]
[391291017,1760470280771,-500.0,0.00016986,2]
[391291018,1760470280782,-500.0,0.00016986,2]
[391291019,1760470280791,-500.0,0.00016986,2]
[391291020,1760470280801,-500.0,0.00016986,2]
[391291021,1760470280810,-500.0,0.00016986,2]
[391291022,1760470280819,-500.0,0.00016986,2]
[391291023,1760470280828,-1032.29,0.00016986,2]
[391291024,1760470280837,-621.11,0.00016986,2]
[391291025,1760470280846,-611.49,0.00016986,2]
[391291026,1760470280855,-500.0,0.00016986,2]
[391291027,1760470280865,-500.0,0.00016986,2]
[391291028,1760470280875,-500.0,0.00016986,2]
[391291029,1760470280885,-308.56146817,0.00016986,2]
[391291030,1760470280895,-1011.43,0.00016986,2]
[391291031,1760470280903,-500.0,0.00016986,2]
[391291032,1760470280912,-960.01,0.00016986,2]
[391291033,1760470280921,-1138.67,0.00016986,2]
[391291034,1760470280931,-500.0,0.00016986,2]
[391291035,1760470280940,-798.62,0.00016986,2]
[391291036,1760470280949,-1641.78,0.00016986,2]
[391291037,1760470280958,-1881.99,0.00016986,2]
[391291038,1760470280967,-500.0,0.00016986,2]
[391291039,1760470280976,-404.85125417,0.00016986,2]
[391291040,1760470280985,-500.0,0.00016986,2]
[391291041,1760470280995,-500.0,0.00016986,2]
[391291042,1760470281003,-506.48,0.00016986,2]
[391291043,1760470281013,-1012.51,0.00016986,2]
[391291044,1760470281022,-929.68,0.00016986,2]
[391291045,1760470281031,-500.0,0.00016986,2]
[391291046,1760470281040,-549.55,0.00016986,2]
[391291047,1760470281049,-1074.91,0.00016986,2]
[391291048,1760470281059,-1063.15,0.00016986,2]
[391291049,1760470281068,-500.0,0.00016986,2]
[391291050,1760470281079,-1122.19,0.00016986,2]
[391291051,1760470281088,-500.0,0.00016986,2]
[391291052,1760470281098,-574.66,0.00016986,2]
[391291053,1760470281110,-1006.98,0.00016986,2]
[391291054,1760470281120,-516.89,0.00016986,2]
[391291055,1760470281129,-648.46,0.00016986,2]
[391291056,1760470281139,-710.02,0.00016986,2]
[391291057,1760470281149,-500.0,0.00016986,2]
[391291058,1760470281159,-500.0,0.00016986,2]
[391291059,1760470281169,-624.35,0.00016986,2]
[391291060,1760470281179,-500.0,0.00016986,2]
[391291061,1760470281188,-500.0,0.00016986,2]
[391291062,1760470281198,-500.0,0.00016986,2]
[391291063,1760470281208,-500.0,0.00016986,2]
[391291064,1760470281218,-1114.85,0.00016986,2]
[391291065,1760470281229,-500.0,0.00016986,2]
[391291066,1760470281239,-716.89,0.00016986,2]
[391291067,1760470281249,-500.0,0.00016986,2]
[391291068,1760470281259,-500.0,0.00016986,2]
[391291069,1760470281269,-597.68,0.00016986,2]
[391291070,1760470281279,-500.0,0.00016986,2]
[391291071,1760470281289,-500.0,0.00016986,2]
[391291072,1760470281299,-500.0,0.00016986,2]
[391291073,1760470281309,-572.37,0.00016986,2]
[391291074,1760470281319,-2025.4,0.00016986,2]
[391291075,1760470281329,-1526.85,0.00016986,2]
[391291076,1760470281339,-500.0,0.00016986,2]
[391291077,1760470281348,-1710.65,0.00016986,2]
[391291078,1760470281358,-500.0,0.00016986,2]
[391291079,1760470281368,-500.0,0.00016986,2]
[391291080,1760470281379,-500.0,0.00016986,2]
[391291081,1760470281391,-500.0,0.00016986,2]
[391291082,1760470281401,-908.78,0.00016986,2]
[391291083,1760470281411,-599.93,0.00016986,2]
[391291084,1760470281420,-1628.56,0.00016986,2]
[391291085,1760470281431,-500.0,0.00016986,2]
[391291086,1760470281442,-1062.13,0.00016986,2]
[391291087,1760470281452,-500.0,0.00016986,2]
[391291088,1760470281462,-699.12,0.00016986,2]
[391291089,1760470281472,-500.0,0.00016986,2]
[391291090,1760470281481,-500.0,0.00016986,2]
[391291091,1760470281491,-525.58,0.00016986,2]
[391291092,1760470281501,-500.0,0.00016986,2]
[391291093,1760470281510,-439.46505834,0.00016986,2]
[391291094,1760470281520,-1312.54,0.00016986,2]
[391291095,1760470281530,-1222.51,0.00016986,2]
[391291096,1760470281539,-500.0,0.00016986,2]
[391291097,1760470281548,-565.94,0.00016986,2]
[391291098,1760470281558,-329.35700796,0.00016986,2]
[391291099,1760470281567,-500.0,0.00016986,2]
[391291100,1760470281577,-402.55828909,0.00016986,2]
[391291101,1760470281587,-500.0,0.00016986,2]
[391291102,1760470281597,-609.17,0.00016986,2]
[391291103,1760470281607,-500.0,0.00016986,2]
[391291104,1760470281616,-500.0,0.00016986,2]
[391291105,1760470281628,-500.0,0.00016986,2]
[391291106,1760470281637,-500.0,0.00016986,2]
[391291107,1760470281647,-1213.77,0.00016986,2]
[391291108,1760470281656,-1810.53,0.00016986,2]
[391291109,1760470281666,-2269.47,0.00016986,2]
[391291110,1760470281676,-848.26,0.00016986,2]
[391291111,1760470281686,-500.0,0.00016986,2]
[391291112,1760470281695,-500.0,0.00016986,2]
[391291113,1760470281705,-1143.15,0.00016986,2]
[391291114,1760470281715,-500.0,0.00016986,2]
[391291115,1760470281725,-500.0,0.00016986,2]
[391291116,1760470281735,-1119.49,0.00016986,2]
[391291117,1760470281744,-500.0,0.00016986,2]
[391291118,1760470281754,-500.0,0.00016986,2]
[391291119,1760470281763,-500.0,0.00016986,2]
[391291120,1760470281772,-500.0,0.00016986,2]
[391291121,1760470281782,-734.76,0.00016986,2]
[391291122,1760470281791,-500.0,0.00016986,2]
[391291123,1760470281801,-500.0,0.00016986,2]
[391291124,1760470281811,-500.0,0.00016986,2]
[391291125,1760470281820,-500.0,0.00016986,2]
[391291126,1760470281830,-655.98,0.00016986,2]
[391291127,1760470281840,-500.0,0.00016986,2]
[391291128,1760470281849,-500.0,0.00016986,2]
[391291129,1760470281859,-488.65133969,0.00016986,2]
[391291130,1760470281868,-500.0,0.00016986,2]
[391291131,1760470281880,-1633.7,0.00016986,2]
[391291132,1760470281890,-896.35,0.00016986,2]
[391291133,1760470281899,-500.0,0.00016986,2]
[391291134,1760470281909,-183.66227752,0.00016986,2]
[391291135,1760470281918,-500.0,0.00016986,2]
[391291136,1760470281928,-616.34,0.00016986,2]
[391291137,1760470281938,-500.0,0.00016986,2]
[391291138,1760470281947,-1895.04,0.00016986,2]
[391291139,1760470281957,-3094.15,0.00016986,2]
[391291140,1760470281967,-902.08,0.00016986,2]
[391291141,1760470281976,-500.0,0.00016986,2]
[391291142,1760470281987,-650.29,0.00016986,2]
[391291143,1760470281996,-500.0,0.00016986,2]
[391291144,1760470282006,-500.0,0.00016986,2]
[391291145,1760470282016,-500.0,0.00016986,2]
[391291146,1760470282026,-804.94,0.00016986,2]
[391291147,1760470282036,-546.43,0.00016986,2]
[391291148,1760470282046,-546.43,0.00016986,2]
[391291149,1760470282056,-538.73,0.00016986,2]
[391291150,1760470282066,-1022.96,0.00016986,2]
[391291151,1760470282076,-2935.13,0.00016986,2]
[391291152,1760470282085,-500.0,0.00016986,2]
[391291153,1760470282095,-500.0,0.00016986,2]
[391291154,1760470282104,-537.84,0.00016986,2]
[391291155,1760470282114,-500.0,0.00016986,2]
[391291156,1760470282125,-2764.87,0.00016986,2]
[391291157,1760470282134,-152.092087,0.00016986,2]
[391291158,1760470282144,-659.88,0.00016986,2]
[391291159,1760470282153,-1330.56,0.00016986,2]
[391291160,1760470282163,-1018.27,0.00016986,2]
[391291161,1760470282172,-680.65,0.00016986,2]
[391291162,1760470282182,-5752.66,0.00016986,2]
[391291163,1760470282191,-1055.39,0.00016986,2]
[391291164,1760470282201,-1431.61,0.00016986,2]
[391291165,1760470282210,-500.0,0.00016986,2]
[391291166,1760470282220,-942.55,0.00016986,2]
[391291167,1760470282229,-1763.11,0.00016986,2]
[391291168,1760470282239,-598.18,0.00016986,2]
[391291169,1760470282249,-1451.44,0.00016986,2]
[391291170,1760470282258,-500.0,0.00016986,2]
[391291171,1760470282268,-834.05,0.00016986,2]
[391291172,1760470282277,-500.0,0.00016986,2]
[391291173,1760470282287,-151.0,0.00016986,2]
[391291174,1760470282297,-500.0,0.00016986,2]
[391291175,1760470282307,-798.19,0.00016986,2]
[391291176,1760470282317,-1343.45,0.00016986,2]
[391291177,1760470282326,-500.0,0.00016986,2]
[391291178,1760470282336,-2054.64,0.00016986,2]
[391291179,1760470282346,-500.0,0.00016986,2]
[391291180,1760470282356,-500.0,0.00016986,2]
[391291181,1760470282365,-500.0,0.00016986,2]
[391291182,1760470282377,-633.93,0.00016986,2]
[391291183,1760470282389,-711.68,0.00016986,2]
[391291184,1760470282399,-1171.32,0.00016986,2]
[391291185,1760470282409,-500.0,0.00016986,2]
[391291186,1760470282419,-1888.62,0.00016986,2]
[391291187,1760470282429,-1025.61,0.00016986,2]
[391291188,1760470282440,-500.0,0.00016986,2]
[391291189,1760470282450,-500.0,0.00016986,2]
[391291190,1760470282460,-567.23,0.00016986,2]
[391291191,1760470282470,-513.73,0.00016986,2]
[391291192,1760470282480,-500.0,0.00016986,2]
[391291193,1760470282490,-525.61,0.00016986,2]
[391291194,1760470282499,-500.0,0.00016986,2]
[391291195,1760470282509,-981.77,0.00016986,2]
[391291196,1760470282519,-500.0,0.00016986,2]
[391291197,1760470282528,-568.54,0.00016986,2]
[391291198,1760470282538,-805.2,0.00016986,2]
[391291199,1760470282548,-1873.93,0.00016986,2]
[391291200,1760470282558,-819.79,0.00016986,2]
[391291201,1760470282567,-500.0,0.00016986,2]
[391291202,1760470282577,-2176.18,0.00016986,2]
[391291203,1760470282586,-1418.22,0.00016986,2]
[391291204,1760470282596,-609.99,0.00016986,2]
[391291205,1760470282605,-590.55,0.00016986,2]
[391291206,1760470282615,-1424.18,0.00016986,2]
[391291207,1760470282627,-2034.47,0.00016986,2]
[391291208,1760470282637,-638.62,0.00016986,2]
[391291209,1760470282646,-685.15,0.00016986,2]
[391291210,1760470282656,-500.0,0.00016986,2]
[391291211,1760470282665,-689.67,0.00016986,2]
[391291212,1760470282675,-1814.26,0.00016986,2]
[391291213,1760470282684,-500.0,0.00016986,2]
[391291214,1760470282694,-2635.51,0.00016986,2]
[391291215,1760470282704,-729.39,0.00016986,2]
[391291216,1760470282713,-500.0,0.00016986,2]
[391291217,1760470282723,-500.0,0.00016986,2]
[391291218,1760470282732,-500.0,0.00016986,2]
[391291219,1760470282743,-755.17,0.00016986,2]
[391291220,1760470282752,-500.0,0.00016986,2]
[391291221,1760470282762,-500.0,0.00016986,2]
[391291222,1760470282771,-501.16,0.00016986,2]
[391291223,1760470282781,-711.22,0.00016986,2]
[391291224,1760470282791,-500.0,0.00016986,2]
[391291225,1760470282800,-1272.84,0.00016986,2]
[391291226,1760470282810,-151.0,0.00016986,2]
[391291227,1760470282819,-500.0,0.00016986,2]
[391291228,1760470282829,-890.49,0.00016986,2]
[391291229,1760470282838,-719.2,0.00016986,2]
[391291230,1760470282847,-258.590383,0.00016986,2]
[391291231,1760470282857,-1582.93,0.00016986,2]
[391291232,1760470282866,-151.0,0.00016986,2]
[391291233,1760470282878,-857.66,0.00016986,2]
[391291234,1760470282887,-10435.78,0.00016986,2]
[391291235,1760470282897,-165.062372,0.00016986,2]
[391291236,1760470282907,-500.0,0.00016986,2]
[391291237,1760470282917,-534.4,0.00016986,2]
[391291238,1760470282927,-500.0,0.00016986,2]
[391291239,1760470282936,-500.0,0.00016986,2]
[391291240,1760470282945,-500.0,0.00016986,2]
[391291241,1760470282955,-1323.5,0.00016986,2]
[391291242,1760470282965,-500.0,0.00016986,2]
[391291243,1760470282974,-1398.63,0.00016986,2]
[391291244,1760470282984,-1198.39,0.00016986,2]
[391291245,1760470282993,-500.0,0.00016986,2]
[391291246,1760470283003,-620.29,0.00016986,2]
[391291247,1760470283013,-2396.21,0.00016986,2]
[391291248,1760470283022,-500.0,0.00016986,2]
[391291249,1760470283032,-1951.49,0.00016986,2]
[391291250,1760470283042,-719.31,0.00016986,2]
[391291251,1760470283052,-500.0,0.00016986,2]
[391291252,1760470283061,-1554.16,0.00016986,2]
[391291253,1760470283071,-500.0,0.00016986,2]
[391291254,1760470283082,-500.0,0.00016986,2]
[391291255,1760470283092,-1628.17,0.00016986,2]
[391291256,1760470283102,-1045.31,0.00016986,2]
[391291257,1760470283112,-578.55,0.00016986,2]
[391291258,1760470283123,-500.0,0.00016986,2]
[391291259,1760470283133,-500.0,0.00016986,2]
[391291260,1760470283143,-500.0,0.00016986,2]
[391291261,1760470283153,-1167.36,0.00016986,2]
[391291262,1760470283163,-567.89,0.00016986,2]
[391291263,1760470283173,-1328.93,0.00016986,2]
[391291264,1760470283184,-500.0,0.00016986,2]
[391291265,1760470283193,-500.0,0.00016986,2]
[391291266,1760470283204,-1687.88,0.00016986,2]
[391291267,1760470283214,-3319.42,0.00016986,2]
[391291268,1760470283507,-500.0,0.00016986,2]
[391291269,1760470283517,-643.75,0.00016986,2]
[391291270,1760470283526,-500.0,0.00016986,2]
[391291271,1760470283535,-1001.34,0.00016986,2]
[391291272,1760470283544,-2393.74,0.00016986,2]
[391291273,1760470283554,-686.47,0.00016986,2]
[391291274,1760470283564,-1897.76,0.00016986,2]
[391291275,1760470283574,-756.77,0.00016986,2]
[391291276,1760470283583,-673.0,0.00016986,2]
[391291277,1760470283592,-500.0,0.00016986,2]
[391291278,1760470283601,-500.0,0.00016986,2]
[391291279,1760470283610,-863.92,0.00016986,2]
[391291280,1760470283619,-850.77,0.00016986,2]
[391291281,1760470283628,-500.0,0.00016986,2]
[391291282,1760470283639,-500.63,0.00016986,2]
[391291283,1760470283648,-500.0,0.00016986,2]
[391291284,1760470283657,-2023.15,0.00016986,2]
[391291285,1760470283667,-712.64,0.00016986,2]
[391291286,1760470283676,-740.79,0.00016986,2]
[391291287,1760470283686,-1575.06,0.00016986,2]
[391291288,1760470283696,-500.0,0.00016986,2]
[391291289,1760470283705,-500.0,0.00016986,2]
[391291290,1760470283715,-500.0,0.00016986,2]
[391291291,1760470283725,-1658.9,0.00016986,2]
[391291292,1760470283735,-500.0,0.00016986,2]
[391291293,1760470283744,-625.32,0.00016986,2]
[391291294,1760470283754,-500.0,0.00016986,2]
[391291295,1760470283763,-651.34,0.00016986,2]
[391291296,1760470283772,-620.77,0.00016986,2]
[391291297,1760470283782,-500.0,0.00016986,2]
[391291298,1760470283791,-1232.03,0.00016986,2]
[391291299,1760470283800,-2642.66,0.00016986,2]
[391291300,1760470283810,-1600.88,0.00016986,2]
[391291301,1760470283819,-500.0,0.00016986,2]
[391291302,1760470283828,-500.0,0.00016986,2]
[391291303,1760470283838,-500.0,0.00016986,2]
[391291304,1760470283848,-500.0,0.00016986,2]
[391291305,1760470283857,-659.92,0.00016986,2]
[391291306,1760470283866,-1435.69,0.00016986,2]
[391291307,1760470283875,-3517.82,0.00016986,2]
[391291308,1760470283884,-500.0,0.00016986,2]
[391291309,1760470283894,-500.0,0.00016986,2]
[391291310,1760470283904,-972.35,0.00016986,2]
[391291311,1760470283914,-500.0,0.00016986,2]
[391291312,1760470283924,-625.47,0.00016986,2]
[391291313,1760470283933,-500.0,0.00016986,2]
[391291314,1760470283942,-500.0,0.00016986,2]
[391291315,1760470283951,-500.0,0.00016986,2]
[391291316,1760470283960,-500.0,0.00016986,2]
[391291317,1760470283969,-500.0,0.00016986,2]
[391291318,1760470283978,-500.0,0.00016986,2]
[391291319,1760470283988,-500.0,0.00016986,2]
[391291320,1760470283997,-546.28,0.00016986,2]
[391291321,1760470284007,-587.64,0.00016986,2]
[391291322,1760470284016,-2105.78,0.00016986,2]
[391291323,1760470284025,-500.0,0.00016986,2]
[391291324,1760470284035,-500.0,0.00016986,2]
[391291325,1760470284044,-500.0,0.00016986,2]
[391291326,1760470284053,-2603.49,0.00016986,2]
[391291327,1760470284063,-500.0,0.00016986,2]
[391291328,1760470284072,-647.17,0.00016986,2]
[391291329,1760470284082,-500.0,0.00016986,2]
[391291330,1760470284092,-500.0,0.00016986,2]
[391291331,1760470284101,-500.0,0.00016986,2]
[391291332,1760470284110,-500.0,0.00016986,2]
[391291333,1760470284119,-502.84,0.00016986,2]